[Event "Titled Tuesday Blitz March 08 Late 2022"]
[White "Mickiewicz, Piotr"]
[Black "Yuan, Qingyu"]
[WhiteFideId "1114891"]
[BlackFideId "8609772"]
[WhiteElo "2266"]
[BlackElo "2359"]
[Result "0-1"]
[Round "09"]
[TimeControl "180+1"]
[Date "2022.03.08"]
[WhiteClock "0:00:01"]
[BlackClock "0:00:12"]

1. Nf3 {[%clk 0:03:00]}  Nf6 {[%clk 0:02:59]} 2. g3 {[%clk 0:03:01]}  g6 {[%clk 0:03:00]} 3. Bg2 {[%clk 0:03:02]}  Bg7 {[%clk 0:03:00]} 4. O-O {[%clk 0:03:03]}  O-O {[%clk 0:03:01]} 5. c4 {[%clk 0:03:02]}  c6 {[%clk 0:03:01]} 6. d3 {[%clk 0:02:59]}  d5 {[%clk 0:03:01]} 7. Nbd2 {[%clk 0:02:57]}  b6 {[%clk 0:02:55]} 8. Qc2 {[%clk 0:02:56]}  Bb7 {[%clk 0:02:55]} 9. a3 {[%clk 0:02:56]}  Nbd7 {[%clk 0:02:45]} 10. b4 {[%clk 0:02:50]}  e5 {[%clk 0:02:39]} 11. e4 {[%clk 0:02:50]}  d4 {[%clk 0:02:27]} 12. c5 {[%clk 0:02:27]}  bxc5 {[%clk 0:02:19]} 13. bxc5 {[%clk 0:02:24]}  Qe7 {[%clk 0:02:18]} 14. Nb3 {[%clk 0:02:04]}  Rfb8 {[%clk 0:02:01]} 15. a4 {[%clk 0:02:03]}  Ba6 {[%clk 0:01:53]} 16. Ba3 {[%clk 0:02:00]}  Qd8 {[%clk 0:01:42]} 17. Rfb1 {[%clk 0:01:55]}  Ne8 {[%clk 0:01:39]} 18. Nfd2 {[%clk 0:01:51]}  Nc7 {[%clk 0:01:38]} 19. Nc4 {[%clk 0:01:49]}  Ne6 {[%clk 0:01:34]} 20. Nd6 {[%clk 0:01:18]}  Bf8 {[%clk 0:01:33]} 21. h4 {[%clk 0:00:50]}  Nf6 {[%clk 0:01:00]} 22. Bh3 {[%clk 0:00:47]}  Qe7 {[%clk 0:00:53]} 23. Na5 {[%clk 0:00:44]}  Nd8 {[%clk 0:00:48]} 24. Rb3 {[%clk 0:00:29]}  Qc7 {[%clk 0:00:46]} 25. Nac4 {[%clk 0:00:21]}  Rxb3 {[%clk 0:00:45]} 26. Qxb3 {[%clk 0:00:20]}  Rb8 {[%clk 0:00:46]} 27. Qc2 {[%clk 0:00:21]}  Bxc4 {[%clk 0:00:34]} 28. Qxc4 {[%clk 0:00:22]}  Nb7 {[%clk 0:00:34]} 29. Nxf7 {[%clk 0:00:20]}  Na5 {[%clk 0:00:25]} 30. Nh6+ {[%clk 0:00:20]}  Kg7 {[%clk 0:00:14]} 31. Qe6 {[%clk 0:00:20]}  Re8 {[%clk 0:00:14]} 32. Qa2 {[%clk 0:00:16]}  Kxh6 {[%clk 0:00:14]} 33. Bb4 {[%clk 0:00:13]}  Kg7 {[%clk 0:00:14]} 34. h5 {[%clk 0:00:12]}  Nb7 {[%clk 0:00:13]} 35. h6+ {[%clk 0:00:11]}  Kxh6 {[%clk 0:00:12]} 36. Qd2+ {[%clk 0:00:10]}  Kg7 {[%clk 0:00:12]} 37. Rb1 {[%clk 0:00:11]}  a5 {[%clk 0:00:12]} 38. Ba3 {[%clk 0:00:11]}  Nxc5 {[%clk 0:00:13]} 39. Qa2 {[%clk 0:00:09]}  Na6 {[%clk 0:00:10]} 40. Bxf8+ {[%clk 0:00:06]}  Kxf8 {[%clk 0:00:10]} 41. Qc4 {[%clk 0:00:06]}  Nb4 {[%clk 0:00:11]} 42. g4 {[%clk 0:00:07]}  Qd6 {[%clk 0:00:11]} 43. g5 {[%clk 0:00:07]}  Nh5 {[%clk 0:00:11]} 44. Rc1 {[%clk 0:00:07]}  Nf4 {[%clk 0:00:11]} 45. Bg4 {[%clk 0:00:08]}  Nfxd3 {[%clk 0:00:11]} 46. Rb1 {[%clk 0:00:08]}  Nf4 {[%clk 0:00:12]} 47. Kh2 {[%clk 0:00:03]}  d3 {[%clk 0:00:12]} 48. Kg3 {[%clk 0:00:04]}  Kg7 {[%clk 0:00:12]} 49. Rh1 {[%clk 0:00:01]}  Rf8 {[%clk 0:00:12]} 0-1


[Site "https://www.chess.com"]

[Event "Titled Tuesday Blitz March 08 Late 2022"]
[White "Mikhalsky, Vladimir"]
[Black "Mekhitarian, Krikor Sevag"]
[WhiteFideId "14144352"]
[BlackFideId "2107660"]
[WhiteElo "2301"]
[BlackElo "2598"]
[Result "1-0"]
[Round "09"]
[TimeControl "180+1"]
[Date "2022.03.08"]
[WhiteClock "0:00:35"]
[BlackClock "0:00:12"]

1. c4 {[%clk 0:03:00]}  c5 {[%clk 0:02:58]} 2. Nf3 {[%clk 0:03:00]}  Nc6 {[%clk 0:02:58]} 3. d4 {[%clk 0:02:58]}  cxd4 {[%clk 0:02:58]} 4. Nxd4 {[%clk 0:02:58]}  g6 {[%clk 0:02:56]} 5. Nc3 {[%clk 0:02:58]}  Bg7 {[%clk 0:02:56]} 6. Nc2 {[%clk 0:02:58]}  d6 {[%clk 0:02:52]} 7. e4 {[%clk 0:02:57]}  Bxc3+ {[%clk 0:02:52]} 8. bxc3 {[%clk 0:02:57]}  Be6 {[%clk 0:02:52]} 9. Nd4 {[%clk 0:02:53]}  Rc8 {[%clk 0:02:48]} 10. Nxe6 {[%clk 0:02:49]}  fxe6 {[%clk 0:02:48]} 11. Be3 {[%clk 0:02:31]}  Nf6 {[%clk 0:02:45]} 12. f3 {[%clk 0:02:31]}  Qa5 {[%clk 0:02:45]} 13. Qd2 {[%clk 0:02:28]}  Ne5 {[%clk 0:02:45]} 14. Rb1 {[%clk 0:02:23]}  b6 {[%clk 0:02:41]} 15. Rb4 {[%clk 0:02:21]}  O-O {[%clk 0:02:28]} 16. Be2 {[%clk 0:02:20]}  Nc6 {[%clk 0:02:21]} 17. Rb5 {[%clk 0:02:19]}  Qa4 {[%clk 0:02:21]} 18. O-O {[%clk 0:02:14]}  Ne5 {[%clk 0:02:19]} 19. Rb4 {[%clk 0:02:13]}  Qc6 {[%clk 0:02:19]} 20. Qd4 {[%clk 0:01:53]}  Ned7 {[%clk 0:02:16]} 21. Bh6 {[%clk 0:01:46]}  Rfd8 {[%clk 0:02:11]} 22. Rd1 {[%clk 0:01:37]}  e5 {[%clk 0:02:11]} 23. Qd2 {[%clk 0:01:32]}  Nc5 {[%clk 0:02:10]} 24. Be3 {[%clk 0:01:28]}  Ne6 {[%clk 0:02:08]} 25. g3 {[%clk 0:01:26]}  Rf8 {[%clk 0:01:59]} 26. Bf1 {[%clk 0:01:20]}  Nc5 {[%clk 0:01:49]} 27. Bh3 {[%clk 0:01:19]}  Rcd8 {[%clk 0:01:49]} 28. Qe2 {[%clk 0:01:15]}  Kg7 {[%clk 0:01:47]} 29. Qd2 {[%clk 0:01:14]}  Ng8 {[%clk 0:01:43]} 30. Kg2 {[%clk 0:01:07]}  Rf7 {[%clk 0:01:29]} 31. Qd5 {[%clk 0:01:06]}  Qe8 {[%clk 0:00:39]} 32. Bxc5 {[%clk 0:01:00]}  bxc5 {[%clk 0:00:38]} 33. Rb7 {[%clk 0:00:58]}  Rb8 {[%clk 0:00:31]} 34. Rdb1 {[%clk 0:00:50]}  Nf6 {[%clk 0:00:21]} 35. Rxb8 {[%clk 0:00:40]}  Nxd5 {[%clk 0:00:19]} 36. Rxe8 {[%clk 0:00:40]}  Ne3+ {[%clk 0:00:14]} 37. Kf2 {[%clk 0:00:39]}  Nxc4 {[%clk 0:00:12]} 38. Be6 {[%clk 0:00:35]} 1-0


[Site "https://www.chess.com"]

[Event "Titled Tuesday Blitz March 08 Late 2022"]
[White "Moral Garcia, Serafin"]
[Black "Osmonbekov, Talaibek"]
[WhiteFideId "2201925"]
[BlackFideId "2017253"]
[WhiteElo "2228"]
[BlackElo "2135"]
[Result "1-0"]
[Round "09"]
[TimeControl "180+1"]
[Date "2022.03.09"]
[WhiteClock "0:01:13"]
[BlackClock "0:00:02"]

1. e4 {[%clk 0:03:00]}  c5 {[%clk 0:02:53]} 2. Nf3 {[%clk 0:03:00]}  d6 {[%clk 0:02:51]} 3. d4 {[%clk 0:03:00]}  cxd4 {[%clk 0:02:52]} 4. Nxd4 {[%clk 0:03:00]}  Nf6 {[%clk 0:02:53]} 5. Nc3 {[%clk 0:03:00]}  g6 {[%clk 0:02:53]} 6. Be3 {[%clk 0:02:59]}  Bg7 {[%clk 0:02:53]} 7. f3 {[%clk 0:03:00]}  O-O {[%clk 0:02:54]} 8. Qd2 {[%clk 0:03:00]}  Nc6 {[%clk 0:02:54]} 9. O-O-O {[%clk 0:03:01]}  d5 {[%clk 0:02:55]} 10. Kb1 {[%clk 0:03:01]}  e5 {[%clk 0:02:53]} 11. Nxc6 {[%clk 0:03:01]}  bxc6 {[%clk 0:02:53]} 12. exd5 {[%clk 0:03:01]}  cxd5 {[%clk 0:02:51]} 13. Nxd5 {[%clk 0:03:02]}  Rb8 {[%clk 0:02:41]} 14. Bc4 {[%clk 0:02:56]}  e4 {[%clk 0:02:38]} 15. Bg5 {[%clk 0:02:49]}  Rxb2+ {[%clk 0:02:22]} 16. Kc1 {[%clk 0:02:43]}  Nxd5 {[%clk 0:01:03]} 17. Bxd8 {[%clk 0:02:40]}  Nb4 {[%clk 0:00:58]} 18. Be7 {[%clk 0:02:28]}  Nxa2+ {[%clk 0:00:57]} 19. Bxa2 {[%clk 0:02:26]}  Rxa2 {[%clk 0:00:58]} 20. Qb4 {[%clk 0:01:58]}  Re8 {[%clk 0:00:29]} 21. Rhe1 {[%clk 0:01:50]}  Bh6+ {[%clk 0:00:21]} 22. Kb1 {[%clk 0:01:47]}  Be6 {[%clk 0:00:20]} 23. Rxe4 {[%clk 0:01:38]}  Bg7 {[%clk 0:00:21]} 24. c3 {[%clk 0:01:38]}  Rxg2 {[%clk 0:00:20]} 25. Rd8 {[%clk 0:01:34]}  Rxd8 {[%clk 0:00:18]} 26. Bxd8 {[%clk 0:01:34]}  Bf5 {[%clk 0:00:19]} 27. c4 {[%clk 0:01:30]}  Be5 {[%clk 0:00:17]} 28. Qe7 {[%clk 0:01:23]}  Bxe4+ {[%clk 0:00:14]} 29. fxe4 {[%clk 0:01:22]}  f6 {[%clk 0:00:14]} 30. Bc7 {[%clk 0:01:16]}  Rg1+ {[%clk 0:00:06]} 31. Kc2 {[%clk 0:01:16]}  Rg2+ {[%clk 0:00:06]} 32. Kb3 {[%clk 0:01:14]}  Rb2+ {[%clk 0:00:06]} 33. Ka3 {[%clk 0:01:13]}  Rb7 {[%clk 0:00:04]} 34. Qe8+ {[%clk 0:01:13]}  Kg7 {[%clk 0:00:04]} 35. Bxe5 {[%clk 0:01:13]}  fxe5 {[%clk 0:00:04]} 36. Qxe5+ {[%clk 0:01:13]}  Kh6 {[%clk 0:00:05]} 37. c5 {[%clk 0:01:13]}  Rf7 {[%clk 0:00:03]} 38. c6 {[%clk 0:01:13]}  g5 {[%clk 0:00:02]} 39. c7 {[%clk 0:01:13]} 1-0


[Site "https://www.chess.com"]

[Event "Titled Tuesday Blitz March 08 Late 2022"]
[White "Petrovic, Aleksa"]
[Black "Avazkhonov, Alikhon"]
[WhiteFideId "967629"]
[BlackFideId "14208504"]
[WhiteElo "2245"]
[BlackElo "1739"]
[Result "1-0"]
[Round "09"]
[TimeControl "180+1"]
[Date "2022.03.09"]
[WhiteClock "0:00:05"]
[BlackClock "0:00:03"]

1. Nf3 {[%clk 0:03:00]}  d5 {[%clk 0:02:54]} 2. e3 {[%clk 0:02:58]}  Bg4 {[%clk 0:02:49]} 3. c4 {[%clk 0:02:56]}  c6 {[%clk 0:02:42]} 4. cxd5 {[%clk 0:02:53]}  cxd5 {[%clk 0:02:41]} 5. Qb3 {[%clk 0:02:49]}  Qc7 {[%clk 0:02:17]} 6. Nc3 {[%clk 0:02:41]}  Bxf3 {[%clk 0:02:05]} 7. gxf3 {[%clk 0:02:39]}  e6 {[%clk 0:02:06]} 8. Rg1 {[%clk 0:02:22]}  Nf6 {[%clk 0:02:05]} 9. f4 {[%clk 0:02:16]}  Nbd7 {[%clk 0:02:03]} 10. d4 {[%clk 0:02:15]}  g6 {[%clk 0:02:01]} 11. Bd2 {[%clk 0:02:12]}  Be7 {[%clk 0:01:50]} 12. Nb5 {[%clk 0:02:11]}  Qb6 {[%clk 0:01:45]} 13. Rc1 {[%clk 0:01:46]}  O-O {[%clk 0:01:41]} 14. f3 {[%clk 0:00:58]}  Rac8 {[%clk 0:01:29]} 15. Rxc8 {[%clk 0:00:54]}  Rxc8 {[%clk 0:01:28]} 16. Bd3 {[%clk 0:00:52]}  a6 {[%clk 0:00:51]} 17. Nc3 {[%clk 0:00:47]}  Qc6 {[%clk 0:00:51]} 18. Ke2 {[%clk 0:00:42]}  b5 {[%clk 0:00:49]} 19. Rc1 {[%clk 0:00:36]}  Qb7 {[%clk 0:00:48]} 20. a4 {[%clk 0:00:20]}  b4 {[%clk 0:00:47]} 21. Na2 {[%clk 0:00:20]}  a5 {[%clk 0:00:43]} 22. Bb5 {[%clk 0:00:19]}  Nb6 {[%clk 0:00:40]} 23. Rxc8+ {[%clk 0:00:17]}  Qxc8 {[%clk 0:00:41]} 24. Nc1 {[%clk 0:00:17]}  Ne8 {[%clk 0:00:29]} 25. Nd3 {[%clk 0:00:14]}  Nd6 {[%clk 0:00:29]} 26. Ne5 {[%clk 0:00:10]}  Nxb5 {[%clk 0:00:22]} 27. axb5 {[%clk 0:00:11]}  a4 {[%clk 0:00:17]} 28. Qd3 {[%clk 0:00:11]}  Nc4 {[%clk 0:00:15]} 29. Nc6 {[%clk 0:00:10]}  Qf8 {[%clk 0:00:10]} 30. Nxe7+ {[%clk 0:00:04]}  Qxe7 {[%clk 0:00:11]} 31. b6 {[%clk 0:00:04]}  Nxb6 {[%clk 0:00:03]} 32. Qb5 {[%clk 0:00:05]}  Nc4 {[%clk 0:00:03]} 33. Bxb4 {[%clk 0:00:05]}  Qh4 {[%clk 0:00:03]} 34. Qe8+ {[%clk 0:00:04]}  Kg7 {[%clk 0:00:03]} 35. Bf8+ {[%clk 0:00:05]} 1-0


[Site "https://www.chess.com"]

[Event "Titled Tuesday Blitz March 08 Late 2022"]
[White "Pinheiro, Iung Alicio de O."]
[Black "Toncheva, Nadya"]
[WhiteFideId "2104350"]
[BlackFideId "2924056"]
[WhiteElo "2607"]
[BlackElo "2402"]
[Result "1-0"]
[Round "09"]
[TimeControl "180+1"]
[Date "2022.03.09"]
[WhiteClock "0:00:20"]
[BlackClock "0:00:20"]

1. c4 {[%clk 0:03:00]}  Nf6 {[%clk 0:02:59]} 2. g3 {[%clk 0:02:56]}  g6 {[%clk 0:02:59]} 3. Bg2 {[%clk 0:02:56]}  Bg7 {[%clk 0:03:00]} 4. Nc3 {[%clk 0:02:56]}  O-O {[%clk 0:03:00]} 5. e4 {[%clk 0:02:49]}  e5 {[%clk 0:03:00]} 6. Nge2 {[%clk 0:02:48]}  d6 {[%clk 0:03:00]} 7. O-O {[%clk 0:02:48]}  Be6 {[%clk 0:03:01]} 8. d3 {[%clk 0:02:45]}  c6 {[%clk 0:03:01]} 9. f4 {[%clk 0:02:14]}  Bg4 {[%clk 0:02:54]} 10. Be3 {[%clk 0:02:11]}  a5 {[%clk 0:02:47]} 11. Qd2 {[%clk 0:02:09]}  Bxe2 {[%clk 0:02:46]} 12. Qxe2 {[%clk 0:02:03]}  Na6 {[%clk 0:02:47]} 13. f5 {[%clk 0:02:00]}  Nc7 {[%clk 0:02:25]} 14. g4 {[%clk 0:01:55]}  d5 {[%clk 0:02:17]} 15. exd5 {[%clk 0:01:26]}  cxd5 {[%clk 0:02:12]} 16. Bg5 {[%clk 0:01:18]}  dxc4 {[%clk 0:02:03]} 17. Bxf6 {[%clk 0:00:42]}  Bxf6 {[%clk 0:01:26]} 18. dxc4 {[%clk 0:00:41]}  Ra6 {[%clk 0:01:14]} 19. Ne4 {[%clk 0:00:38]}  Qe7 {[%clk 0:01:01]} 20. Rad1 {[%clk 0:00:37]}  Rd8 {[%clk 0:01:00]} 21. Rxd8+ {[%clk 0:00:32]}  Qxd8 {[%clk 0:01:01]} 22. Rd1 {[%clk 0:00:33]}  Qe7 {[%clk 0:00:58]} 23. c5 {[%clk 0:00:30]}  Nb5 {[%clk 0:00:53]} 24. Qxb5 {[%clk 0:00:28]}  gxf5 {[%clk 0:00:41]} 25. gxf5 {[%clk 0:00:27]}  Bg5 {[%clk 0:00:36]} 26. Kh1 {[%clk 0:00:26]}  Be3 {[%clk 0:00:36]} 27. Qe2 {[%clk 0:00:21]}  Bd4 {[%clk 0:00:25]} 28. Qg4+ {[%clk 0:00:21]}  Kh8 {[%clk 0:00:24]} 29. f6 {[%clk 0:00:21]}  Qf8 {[%clk 0:00:23]} 30. Qf5 {[%clk 0:00:21]}  Qh6 {[%clk 0:00:20]} 31. Qc8+ {[%clk 0:00:20]} 1-0


[Site "https://www.chess.com"]

[Event "Titled Tuesday Blitz March 08 Late 2022"]
[White "Prohorov, Olexandr"]
[Black "Maranhao,Jose Renato Ruiz"]
[WhiteFideId "14105578"]
[BlackFideId "2135175"]
[WhiteElo "1993"]
[BlackElo "1970"]
[Result "1-0"]
[Round "09"]
[TimeControl "180+1"]
[Date "2022.03.09"]
[WhiteClock "0:02:03"]
[BlackClock "0:00:01"]

1. e4 {[%clk 0:02:59]}  c6 {[%clk 0:02:59]} 2. d4 {[%clk 0:02:58]}  d5 {[%clk 0:03:00]} 3. e5 {[%clk 0:02:58]}  Bf5 {[%clk 0:02:59]} 4. Nf3 {[%clk 0:02:58]}  e6 {[%clk 0:02:59]} 5. Be2 {[%clk 0:02:58]}  Nd7 {[%clk 0:02:58]} 6. O-O {[%clk 0:02:58]}  h6 {[%clk 0:02:49]} 7. Nbd2 {[%clk 0:02:57]}  Bh7 {[%clk 0:02:49]} 8. Nb3 {[%clk 0:02:56]}  Ne7 {[%clk 0:02:49]} 9. a4 {[%clk 0:02:55]}  a5 {[%clk 0:02:30]} 10. Bd2 {[%clk 0:02:54]}  Ng6 {[%clk 0:02:22]} 11. Ne1 {[%clk 0:02:53]}  Be7 {[%clk 0:02:11]} 12. f4 {[%clk 0:02:53]}  O-O {[%clk 0:02:10]} 13. g4 {[%clk 0:02:48]}  Nh4 {[%clk 0:01:47]} 14. Bd3 {[%clk 0:02:25]}  Bxd3 {[%clk 0:01:17]} 15. Nxd3 {[%clk 0:02:26]}  f5 {[%clk 0:00:49]} 16. exf6 {[%clk 0:02:24]}  Nxf6 {[%clk 0:00:44]} 17. Qe1 {[%clk 0:02:22]}  Nxg4 {[%clk 0:00:27]} 18. Qxe6+ {[%clk 0:02:21]}  Kh8 {[%clk 0:00:20]} 19. Qxg4 {[%clk 0:02:22]}  Nf5 {[%clk 0:00:12]} 20. Ne5 {[%clk 0:02:22]}  Rf6 {[%clk 0:00:04]} 21. Rae1 {[%clk 0:02:16]}  Bb4 {[%clk 0:00:02]} 22. c3 {[%clk 0:02:16]}  Bd6 {[%clk 0:00:02]} 23. Nc5 {[%clk 0:02:11]}  b6 {[%clk 0:00:02]} 24. Ncd3 {[%clk 0:02:12]}  Qc7 {[%clk 0:00:01]} 25. Kh1 {[%clk 0:02:06]}  Kg8 {[%clk 0:00:01]} 26. Rg1 {[%clk 0:02:06]}  Raf8 {[%clk 0:00:02]} 27. Ng6 {[%clk 0:02:03]}  R8f7 {[%clk 0:00:01]} 28. Re8+ {[%clk 0:02:03]} 1-0


[Site "https://www.chess.com"]

[Event "Titled Tuesday Blitz March 08 Late 2022"]
[White "Rastbod, Ali"]
[Black "Debray, Christopher"]
[WhiteFideId "12567477"]
[BlackFideId "630810"]
[WhiteElo "2200"]
[BlackElo "2393"]
[Result "1-0"]
[Round "09"]
[TimeControl "180+1"]
[Date "2022.03.08"]
[WhiteClock "0:00:15"]
[BlackClock "0:00:14"]

1. c4 {[%clk 0:02:59]}  g6 {[%clk 0:02:59]} 2. d4 {[%clk 0:02:59]}  Bg7 {[%clk 0:03:00]} 3. Nf3 {[%clk 0:02:59]}  d6 {[%clk 0:03:01]} 4. Nc3 {[%clk 0:02:58]}  Bg4 {[%clk 0:03:01]} 5. Qb3 {[%clk 0:02:55]}  Bxf3 {[%clk 0:03:00]} 6. gxf3 {[%clk 0:02:56]}  Nc6 {[%clk 0:03:01]} 7. e3 {[%clk 0:02:44]}  Rb8 {[%clk 0:03:01]} 8. h4 {[%clk 0:02:41]}  Nf6 {[%clk 0:03:01]} 9. f4 {[%clk 0:02:40]}  O-O {[%clk 0:02:56]} 10. Bg2 {[%clk 0:02:38]}  e5 {[%clk 0:02:56]} 11. fxe5 {[%clk 0:02:37]}  dxe5 {[%clk 0:02:57]} 12. d5 {[%clk 0:02:37]}  Ne7 {[%clk 0:02:48]} 13. e4 {[%clk 0:02:18]}  c6 {[%clk 0:02:47]} 14. Be3 {[%clk 0:02:16]}  cxd5 {[%clk 0:02:46]} 15. cxd5 {[%clk 0:02:15]}  Nc8 {[%clk 0:02:43]} 16. O-O-O {[%clk 0:02:13]}  Ng4 {[%clk 0:02:43]} 17. Bg5 {[%clk 0:01:57]}  f6 {[%clk 0:01:58]} 18. d6+ {[%clk 0:01:45]}  Kh8 {[%clk 0:01:58]} 19. Be3 {[%clk 0:01:45]}  Nxe3 {[%clk 0:01:54]} 20. fxe3 {[%clk 0:01:46]}  Nxd6 {[%clk 0:01:49]} 21. Qe6 {[%clk 0:01:42]}  Qb6 {[%clk 0:01:39]} 22. Qxd6 {[%clk 0:01:36]}  Qxe3+ {[%clk 0:01:39]} 23. Qd2 {[%clk 0:01:36]}  Qg3 {[%clk 0:01:33]} 24. Kb1 {[%clk 0:01:35]}  f5 {[%clk 0:01:24]} 25. Qg5 {[%clk 0:01:21]}  Qf2 {[%clk 0:01:04]} 26. Rhf1 {[%clk 0:01:08]}  Qb6 {[%clk 0:01:01]} 27. Nd5 {[%clk 0:00:49]}  Qb5 {[%clk 0:00:59]} 28. exf5 {[%clk 0:00:49]}  gxf5 {[%clk 0:00:55]} 29. Rxf5 {[%clk 0:00:27]}  Rxf5 {[%clk 0:00:56]} 30. Qxf5 {[%clk 0:00:28]}  Qe2 {[%clk 0:00:56]} 31. Qf3 {[%clk 0:00:25]}  Qc4 {[%clk 0:00:48]} 32. Bf1 {[%clk 0:00:20]}  Qxh4 {[%clk 0:00:47]} 33. Bd3 {[%clk 0:00:20]}  Rf8 {[%clk 0:00:40]} 34. Qh1 {[%clk 0:00:19]}  Qxh1 {[%clk 0:00:36]} 35. Rxh1 {[%clk 0:00:20]}  h6 {[%clk 0:00:36]} 36. Rh2 {[%clk 0:00:19]}  Rf3 {[%clk 0:00:22]} 37. Be4 {[%clk 0:00:19]}  Rf1+ {[%clk 0:00:22]} 38. Kc2 {[%clk 0:00:19]}  Re1 {[%clk 0:00:23]} 39. Nc3 {[%clk 0:00:16]}  Bf8 {[%clk 0:00:19]} 40. Bxb7 {[%clk 0:00:14]}  Kg7 {[%clk 0:00:15]} 41. Rg2+ {[%clk 0:00:14]}  Kf6 {[%clk 0:00:15]} 42. Rf2+ {[%clk 0:00:13]}  Kg7 {[%clk 0:00:15]} 43. Re2 {[%clk 0:00:13]}  Rg1 {[%clk 0:00:11]} 44. Rxe5 {[%clk 0:00:12]}  Bd6 {[%clk 0:00:12]} 45. Rh5 {[%clk 0:00:10]}  Kg6 {[%clk 0:00:10]} 46. Rh3 {[%clk 0:00:08]}  Kg5 {[%clk 0:00:07]} 47. Ne4+ {[%clk 0:00:08]}  Kg4 {[%clk 0:00:06]} 48. Rxh6 {[%clk 0:00:08]}  Bf4 {[%clk 0:00:06]} 49. Rg6+ {[%clk 0:00:08]}  Kf3 {[%clk 0:00:06]} 50. Rxg1 {[%clk 0:00:09]}  Be3 {[%clk 0:00:06]} 51. Rg3+ {[%clk 0:00:07]}  Ke2 {[%clk 0:00:06]} 52. Rxe3+ {[%clk 0:00:08]}  Kxe3 {[%clk 0:00:06]} 53. Kc3 {[%clk 0:00:09]}  a6 {[%clk 0:00:06]} 54. Bxa6 {[%clk 0:00:09]}  Kf4 {[%clk 0:00:06]} 55. Kc4 {[%clk 0:00:10]}  Ke5 {[%clk 0:00:07]} 56. Kc5 {[%clk 0:00:11]}  Ke6 {[%clk 0:00:08]} 57. Bc8+ {[%clk 0:00:10]}  Ke7 {[%clk 0:00:08]} 58. Nd6 {[%clk 0:00:10]}  Kd8 {[%clk 0:00:09]} 59. Kc6 {[%clk 0:00:10]}  Ke7 {[%clk 0:00:10]} 60. b4 {[%clk 0:00:11]}  Kd8 {[%clk 0:00:10]} 61. b5 {[%clk 0:00:12]}  Ke7 {[%clk 0:00:11]} 62. b6 {[%clk 0:00:13]}  Kd8 {[%clk 0:00:12]} 63. b7 {[%clk 0:00:14]}  Ke7 {[%clk 0:00:13]} 64. b8=Q {[%clk 0:00:15]}  Kd8 {[%clk 0:00:14]} 65. Qc7# {[%clk 0:00:15]} 1-0


[Site "https://www.chess.com"]

[Event "Titled Tuesday Blitz March 08 Late 2022"]
[White "Ronka, Erik"]
[Black "Petrova, Irina"]
[WhiteFideId "505080"]
[BlackFideId "14124122"]
[WhiteElo "2264"]
[BlackElo "1993"]
[Result "1-0"]
[Round "09"]
[TimeControl "180+1"]
[Date "2022.03.09"]
[WhiteClock "0:01:43"]
[BlackClock "0:00:16"]

1. e4 {[%clk 0:03:00]}  d6 {[%clk 0:03:00]} 2. d4 {[%clk 0:02:59]}  Nf6 {[%clk 0:03:00]} 3. Nc3 {[%clk 0:02:59]}  e5 {[%clk 0:03:00]} 4. Nf3 {[%clk 0:02:53]}  Nbd7 {[%clk 0:03:00]} 5. Rg1 {[%clk 0:02:54]}  g6 {[%clk 0:02:58]} 6. g4 {[%clk 0:02:51]}  Bg7 {[%clk 0:02:58]} 7. Be3 {[%clk 0:02:52]}  O-O {[%clk 0:02:56]} 8. g5 {[%clk 0:02:47]}  Nh5 {[%clk 0:02:55]} 9. Qd2 {[%clk 0:02:47]}  exd4 {[%clk 0:02:41]} 10. Nxd4 {[%clk 0:02:47]}  c5 {[%clk 0:02:31]} 11. Nb3 {[%clk 0:02:36]}  Ne5 {[%clk 0:02:27]} 12. Be2 {[%clk 0:02:34]}  Be6 {[%clk 0:02:25]} 13. O-O-O {[%clk 0:02:30]}  Nc4 {[%clk 0:02:24]} 14. Bxc4 {[%clk 0:02:30]}  Bxc4 {[%clk 0:02:25]} 15. Qxd6 {[%clk 0:02:29]}  Qe8 {[%clk 0:01:49]} 16. Bxc5 {[%clk 0:02:24]}  Bxb3 {[%clk 0:01:47]} 17. axb3 {[%clk 0:02:21]}  Bxc3 {[%clk 0:01:42]} 18. bxc3 {[%clk 0:02:21]}  Qxe4 {[%clk 0:01:36]} 19. Kb2 {[%clk 0:02:12]}  Rfc8 {[%clk 0:01:29]} 20. Bd4 {[%clk 0:02:09]}  b5 {[%clk 0:01:17]} 21. Rge1 {[%clk 0:02:09]}  Qf5 {[%clk 0:01:14]} 22. Re5 {[%clk 0:02:07]}  Qf3 {[%clk 0:01:11]} 23. Rd3 {[%clk 0:02:05]}  Qb7 {[%clk 0:00:52]} 24. Re7 {[%clk 0:02:04]}  Qb8 {[%clk 0:00:47]} 25. Qxb8 {[%clk 0:01:51]}  Raxb8 {[%clk 0:00:38]} 26. Bxa7 {[%clk 0:01:50]}  Ra8 {[%clk 0:00:27]} 27. Rdd7 {[%clk 0:01:48]}  Rf8 {[%clk 0:00:16]} 28. Bd4 {[%clk 0:01:43]} 1-0


[Site "https://www.chess.com"]

[Event "Titled Tuesday Blitz March 08 Late 2022"]
[White "Rorrer, Grayson"]
[Black "Bluebaum, Matthias"]
[WhiteFideId "30944996"]
[BlackFideId "24651516"]
[WhiteElo "2122"]
[BlackElo "2550"]
[Result "0-1"]
[Round "09"]
[TimeControl "180+1"]
[Date "2022.03.08"]
[WhiteClock "0:00:03"]
[BlackClock "0:01:16"]

1. e4 {[%clk 0:03:00]}  c6 {[%clk 0:02:59]} 2. d4 {[%clk 0:03:00]}  d5 {[%clk 0:03:00]} 3. exd5 {[%clk 0:03:01]}  cxd5 {[%clk 0:03:01]} 4. Bd3 {[%clk 0:03:01]}  Nc6 {[%clk 0:03:01]} 5. c3 {[%clk 0:03:02]}  Nf6 {[%clk 0:03:01]} 6. h3 {[%clk 0:03:02]}  e5 {[%clk 0:03:01]} 7. dxe5 {[%clk 0:03:03]}  Nxe5 {[%clk 0:03:02]} 8. Nf3 {[%clk 0:03:04]}  Nxd3+ {[%clk 0:03:03]} 9. Qxd3 {[%clk 0:03:05]}  Bd6 {[%clk 0:03:03]} 10. O-O {[%clk 0:03:04]}  O-O {[%clk 0:03:04]} 11. Bg5 {[%clk 0:03:04]}  h6 {[%clk 0:03:05]} 12. Bxf6 {[%clk 0:03:05]}  Qxf6 {[%clk 0:03:06]} 13. Nbd2 {[%clk 0:03:05]}  Bf5 {[%clk 0:03:05]} 14. Qd4 {[%clk 0:03:05]}  Qxd4 {[%clk 0:03:01]} 15. Nxd4 {[%clk 0:03:06]}  Bd7 {[%clk 0:03:01]} 16. Rfe1 {[%clk 0:03:06]}  Rfe8 {[%clk 0:03:01]} 17. Rxe8+ {[%clk 0:03:03]}  Rxe8 {[%clk 0:03:02]} 18. Nf1 {[%clk 0:03:03]}  Bf4 {[%clk 0:02:53]} 19. g3 {[%clk 0:02:55]}  Be5 {[%clk 0:02:52]} 20. Nf3 {[%clk 0:01:48]}  Bxh3 {[%clk 0:02:46]} 21. Ne3 {[%clk 0:01:48]}  Bxg3 {[%clk 0:02:40]} 22. Nxd5 {[%clk 0:01:42]}  Bb8 {[%clk 0:02:39]} 23. Ne3 {[%clk 0:01:27]}  Bc7 {[%clk 0:02:31]} 24. Nd4 {[%clk 0:01:19]}  Bb6 {[%clk 0:02:25]} 25. Rd1 {[%clk 0:01:17]}  Rd8 {[%clk 0:02:24]} 26. Nc4 {[%clk 0:01:12]}  Bxd4 {[%clk 0:02:19]} 27. cxd4 {[%clk 0:01:13]}  Be6 {[%clk 0:02:19]} 28. b3 {[%clk 0:01:13]}  g5 {[%clk 0:02:14]} 29. Ne3 {[%clk 0:01:09]}  Bd5 {[%clk 0:02:13]} 30. Rc1 {[%clk 0:01:05]}  Be4 {[%clk 0:02:11]} 31. d5 {[%clk 0:00:58]}  f5 {[%clk 0:02:11]} 32. Rc7 {[%clk 0:00:55]}  h5 {[%clk 0:02:04]} 33. f3 {[%clk 0:00:30]}  Bd3 {[%clk 0:01:32]} 34. Rc3 {[%clk 0:00:19]}  Bb1 {[%clk 0:01:32]} 35. Rc1 {[%clk 0:00:15]}  f4 {[%clk 0:01:33]} 36. Nc4 {[%clk 0:00:07]}  Bd3 {[%clk 0:01:29]} 37. Nb2 {[%clk 0:00:05]}  Bg6 {[%clk 0:01:19]} 38. Rc5 {[%clk 0:00:05]}  b6 {[%clk 0:01:18]} 39. Rb5 {[%clk 0:00:04]}  Be8 {[%clk 0:01:17]} 40. Rb4 {[%clk 0:00:02]}  Rxd5 {[%clk 0:01:18]} 41. Re4 {[%clk 0:00:03]}  Bf7 {[%clk 0:01:18]} 42. Nc4 {[%clk 0:00:03]}  Rd1+ {[%clk 0:01:16]} 43. Kf2 {[%clk 0:00:03]}  Bxc4 {[%clk 0:01:16]} 0-1


[Site "https://www.chess.com"]